[Event "Gibraltar Masters 18th"]
[Site "Gibraltar"]
[Date "2020.01.22"]
[Round "2.45"]
[White "Soumya, Swaminathan"]
[Black "Moroni, Luca Jr"]
[Result "0-1"]
[ECO "C78"]
[WhiteElo "2384"]
[BlackElo "2532"]
[PlyCount "144"]
[EventDate "2020.01.21"]
[EventType "swiss"]
[EventRounds "10"]
[EventCountry "GGB"]
[SourceTitle "BritBase"]
[Source "John Saunders"]
[SourceDate "2021.06.05"]
[SourceVersion "1"]
[SourceVersionDate "2021.06.05"]
[SourceQuality "1"]
[TimeControl "40/100:0"]
[WhiteClock "0:02:38"]
[BlackClock "0:07:14"]

1. e4 {[%emt 0:00:00]} e5 {[%emt 0:00:00]} 2. Nf3 {[%emt 0:00:00]} Nc6 {
[%emt 0:00:00]} 3. Bb5 {[%emt 0:00:00]} a6 {[%emt 0:00:00]} 4. Ba4 {[%emt 0:00:
00]} Nf6 {[%emt 0:00:00]} 5. O-O {[%emt 0:00:00]} b5 {[%emt 0:00:00]} 6. Bb3 {
[%emt 0:00:00]} Bc5 {[%emt 0:00:00]} 7. c3 {[%emt 0:00:00]} d6 {[%emt 0:00:00]}
8. a4 {[%emt 0:00:00]} Rb8 {[%emt 0:00:00]} 9. d4 {[%emt 0:00:00]} Bb6 {
[%emt 0:00:00]} 10. a5 {[%emt 0:00:00]} Ba7 {[%emt 0:00:00]} 11. h3 {[%emt 0:
00:00]} O-O {[%emt 0:00:00]} 12. Be3 {[%emt 0:00:00]} exd4 {[%emt 0:00:00]} 13.
cxd4 {[%emt 0:00:00]} h6 {[%emt 0:00:00]} 14. Nc3 {[%emt 0:00:00]} Re8 {
[%emt 0:00:00]} 15. Qc1 {[%emt 0:00:00]} Nb4 {[%emt 0:00:00]} 16. Rd1 {[%emt 0:
00:00]} Bb7 {[%emt 0:00:00]} 17. d5 {[%emt 0:00:00]} Bc5 {[%emt 0:00:00]} 18.
Bxc5 {[%emt 0:00:00]} dxc5 {[%emt 0:00:00]} 19. e5 {[%emt 0:00:00]} Nh7 {
[%emt 0:00:00]} 20. Bc2 {[%emt 0:00:00]} Ng5 {[%emt 0:00:00]} 21. Nh2 {[%emt 0:
00:00]} Rxe5 {[%emt 0:00:00]} 22. f4 {[%emt 0:00:00]} Nxh3+ {[%emt 0:00:00]}
23. gxh3 {[%emt 0:00:00]} Rh5 {[%emt 0:00:00]} 24. Be4 {[%emt 0:00:00]} Rxh3 {
[%emt 0:00:00]} 25. Bg2 {[%emt 0:00:00]} Rg3 {[%emt 0:00:00]} 26. Qd2 {[%emt 0:
00:00]} Nd3 {[%emt 0:00:00]} 27. Nf1 {[%emt 0:00:00]} Rxg2+ {[%emt 0:00:00]}
28. Qxg2 {[%emt 0:00:00]} Nxf4 {[%emt 0:00:00]} 29. Qg4 {[%emt 0:00:00]} Qf6 {
[%emt 0:00:00]} 30. Ng3 {[%emt 0:00:00]} Bc8 {[%emt 0:00:00]} 31. Qf3 {[%emt 0:
00:00]} Nh3+ {[%emt 0:00:00]} 32. Kg2 {[%emt 0:00:00]} Nf4+ {[%emt 0:00:00]}
33. Kg1 {[%emt 0:00:00]} b4 {[%emt 0:00:00]} 34. Nce4 {[%emt 0:00:00]} Nh3+ {
[%emt 0:00:00]} 35. Kg2 {[%emt 0:00:00]} Qxb2+ {[%emt 0:00:00]} 36. Kh1 {
[%emt 0:00:00]} Bb7 {[%emt 0:00:00]} 37. Qf5 {[%emt 0:00:27]} Bc8 {[%emt 0:00:
00]} 38. Qf3 {[%emt 0:00:00]} Bb7 {[%emt 0:00:00]} 39. Rf1 {[%emt 0:00:28]}
Bxd5 {[%emt 0:00:00]} 40. Nf6+ {[%emt 0:00:00]} Qxf6 {[%emt 0:00:00]} 41. Qxd5
{[%emt 0:00:53]} Nf4 {[%emt 0:00:00]} 42. Qf3 {[%emt 0:00:00]} Qh4+ {[%emt 0:
00:00]} 43. Kg1 {[%emt 0:00:00]} Nh3+ {[%emt 0:00:00]} 44. Kg2 {[%emt 0:00:00]}
Ng5 {[%emt 0:00:00]} 45. Qf5 {[%emt 0:00:00]} g6 {[%emt 0:00:00]} 46. Qd7 {
[%emt 0:00:00]} b3 {[%emt 0:00:00]} 47. Rae1 {[%emt 0:00:00]} b2 {[%emt 0:00:
00]} 48. Qxc7 {[%emt 0:00:00]} Qh3+ {[%emt 0:00:00]} 49. Kg1 {[%emt 0:00:00]}
Rc8 {[%emt 0:00:00]} 50. Qe5 {[%emt 0:00:00]} c4 {[%emt 0:00:00]} 51. Qf4 {
[%emt 0:00:00]} Qd7 {[%emt 0:00:00]} 52. Qh4 {[%emt 0:00:00]} c3 {[%emt 0:00:
00]} 53. Qb4 {[%emt 0:00:00]} Qh3 {[%emt 0:00:00]} 54. Re3 {[%emt 0:00:00]} c2
{[%emt 0:00:00]} 55. Qxb2 {[%emt 0:00:00]} Ne4 {[%emt 0:00:00]} 56. Rfe1 {
[%emt 0:00:00]} c1=Q {[%emt 0:06:31]} 57. Rxc1 {[%emt 0:00:00]} Rxc1+ {[%emt 0:
00:00]} 58. Qxc1 {[%emt 0:00:00]} Nxg3 {[%emt 0:00:00]} 59. Re8+ {[%emt 0:00:
58]} Kh7 {[%emt 0:00:00]} 60. Qc4 {[%emt 0:00:00]} Qd7 {[%emt 0:00:00]} 61. Rc8
{[%emt 0:00:00]} Ne4 {[%emt 0:00:00]} 62. Qc2 {[%emt 0:00:03]} Qg4+ {[%emt 0:
00:00]} 63. Kf1 {[%emt 0:00:00]} Qf3+ {[%emt 0:00:00]} 64. Kg1 {[%emt 0:00:00]}
Qg4+ {[%emt 0:00:00]} 65. Kf1 {[%emt 0:00:00]} h5 {[%emt 0:00:00]} 66. Re8 {
[%emt 0:00:00]} Qf3+ {[%emt 0:00:00]} 67. Kg1 {[%emt 0:00:00]} Qe3+ {[%emt 0:
00:00]} 68. Kg2 {[%emt 0:00:00]} Qg5+ {[%emt 0:00:00]} 69. Kf3 {[%emt 0:00:00]}
Qg4+ {[%emt 0:00:00]} 70. Ke3 {[%emt 0:00:00]} Nd6 {[%emt 0:00:00]} 71. Rf8 {
[%emt 0:00:00]} Kg7 {[%emt 0:00:00]} 72. Rb8 {[%emt 0:00:00]} Nf5+ {[%emt 0:00:
00]} 0-1

[Event "Gibraltar Masters 18th"]
[Site "Gibraltar"]
[Date "2020.01.22"]
[Round "2.46"]
[White "Baron, Tal"]
[Black "Gschnitzer, Adrian"]
[Result "1/2-1/2"]
[ECO "B38"]
[WhiteElo "2529"]
[BlackElo "2388"]
[PlyCount "82"]
[EventDate "2020.01.21"]
[EventType "swiss"]
[EventRounds "10"]
[EventCountry "GGB"]
[SourceTitle "BritBase"]
[Source "John Saunders"]
[SourceDate "2021.06.05"]
[SourceVersion "1"]
[SourceVersionDate "2021.06.05"]
[SourceQuality "1"]
[TimeControl "40/100:0"]
[WhiteClock "0:15:55"]
[BlackClock "0:49:48"]

1. e4 {[%emt 0:00:00]} c5 {[%emt 0:00:00]} 2. Nf3 {[%emt 0:00:00]} Nc6 {
[%emt 0:00:00]} 3. d4 {[%emt 0:00:00]} cxd4 {[%emt 0:00:00]} 4. Nxd4 {[%emt 0:
00:00]} g6 {[%emt 0:00:00]} 5. c4 {[%emt 0:00:00]} Bg7 {[%emt 0:00:00]} 6. Be3
{[%emt 0:00:00]} Nf6 {[%emt 0:00:00]} 7. Nc3 {[%emt 0:00:00]} O-O {[%emt 0:00:
00]} 8. Be2 {[%emt 0:00:00]} d6 {[%emt 0:00:00]} 9. O-O {[%emt 0:00:00]} Bd7 {
[%emt 0:00:00]} 10. h3 {[%emt 0:00:00]} a6 {[%emt 0:00:00]} 11. Nb3 {[%emt 0:
00:00]} a5 {[%emt 0:00:00]} 12. a4 {[%emt 0:00:00]} Nb4 {[%emt 0:00:00]} 13. f4
{[%emt 0:00:00]} Bc6 {[%emt 0:00:00]} 14. Bf3 {[%emt 0:00:00]} b6 {[%emt 0:00:
00]} 15. Nd4 {[%emt 0:00:00]} Bb7 {[%emt 0:00:00]} 16. Nd5 {[%emt 0:00:00]} Nd7
{[%emt 0:00:00]} 17. Re1 {[%emt 0:00:00]} Nc5 {[%emt 0:00:00]} 18. Nxb4 {
[%emt 0:00:00]} axb4 {[%emt 0:00:00]} 19. Bf2 {[%emt 0:00:00]} b3 {[%emt 0:00:
00]} 20. Nxb3 {[%emt 0:00:00]} Nxa4 {[%emt 0:00:00]} 21. Nd4 {[%emt 0:00:00]}
Nc5 {[%emt 0:00:00]} 22. Qc2 {[%emt 0:00:00]} e5 {[%emt 0:00:00]} 23. fxe5 {
[%emt 0:00:00]} dxe5 {[%emt 0:00:00]} 24. Nb5 {[%emt 0:00:00]} Qd3 {[%emt 0:00:
00]} 25. Rac1 {[%emt 0:00:00]} Qxc2 {[%emt 0:00:00]} 26. Rxc2 {[%emt 0:00:00]}
Nd3 {[%emt 0:00:00]} 27. Rd1 {[%emt 0:00:00]} Nxf2 {[%emt 0:00:00]} 28. Kxf2 {
[%emt 0:00:00]} f5 {[%emt 0:00:00]} 29. Ke1 {[%emt 0:00:00]} fxe4 {[%emt 0:00:
00]} 30. Bg4 {[%emt 0:00:00]} Rf6 {[%emt 0:00:00]} 31. Rf2 {[%emt 0:00:00]}
Rxf2 {[%emt 0:00:00]} 32. Kxf2 {[%emt 0:00:00]} e3+ {[%emt 0:00:00]} 33. Kxe3 {
[%emt 0:00:00]} Bxg2 {[%emt 0:00:00]} 34. Be6+ {[%emt 0:00:00]} Kh8 {[%emt 0:
00:00]} 35. Nd6 {[%emt 0:00:00]} Bf8 {[%emt 0:00:00]} 36. Kf2 {[%emt 0:00:00]}
Bc6 {[%emt 0:00:00]} 37. Nf7+ {[%emt 0:00:00]} Kg7 {[%emt 0:00:00]} 38. Nxe5 {
[%emt 0:00:00]} Bc5+ {[%emt 0:00:00]} 39. Kg3 {[%emt 0:00:00]} Ba4 {[%emt 0:00:
00]} 40. Rd3 {[%emt 0:00:00]} Re8 {[%emt 0:01:01]} 41. Bd7 {[%emt 0:00:00]}
Rxe5 {[%emt 0:00:00]} 1/2-1/2

[Event "Gibraltar Masters 18th"]
[Site "Gibraltar"]
[Date "2020.01.22"]
[Round "2.47"]
[White "Kotronias, Vasilios"]
[Black "Nandhidhaa, P V."]
[Result "1-0"]
[ECO "B48"]
[WhiteElo "2526"]
[BlackElo "2312"]
[PlyCount "97"]
[EventDate "2020.01.21"]
[EventType "swiss"]
[EventRounds "10"]
[EventCountry "GGB"]
[SourceTitle "BritBase"]
[Source "John Saunders"]
[SourceDate "2021.06.05"]
[SourceVersion "1"]
[SourceVersionDate "2021.06.05"]
[SourceQuality "1"]
[TimeControl "40/100:0"]
[WhiteClock "0:17:05"]
[BlackClock "0:19:00"]

1. e4 {[%emt 0:00:00]} c5 {[%emt 0:00:00]} 2. Nf3 {[%emt 0:00:00]} e6 {[%emt 0:
00:00]} 3. d4 {[%emt 0:00:00]} cxd4 {[%emt 0:00:00]} 4. Nxd4 {[%emt 0:00:00]}
Nc6 {[%emt 0:00:00]} 5. Nc3 {[%emt 0:00:00]} Qc7 {[%emt 0:00:00]} 6. Be3 {
[%emt 0:00:00]} a6 {[%emt 0:00:00]} 7. Qf3 {[%emt 0:00:00]} Nf6 {[%emt 0:00:00]
} 8. O-O-O {[%emt 0:00:00]} Rb8 {[%emt 0:00:00]} 9. Be2 {[%emt 0:00:00]} Bb4 {
[%emt 0:00:00]} 10. Bf4 {[%emt 0:00:00]} e5 {[%emt 0:00:00]} 11. Qg3 {[%emt 0:
00:00]} Be7 {[%emt 0:00:00]} 12. Nxc6 {[%emt 0:00:00]} exf4 {[%emt 0:00:00]}
13. Qxg7 {[%emt 0:00:00]} Rg8 {[%emt 0:00:00]} 14. Nd5 {[%emt 0:00:00]} Qxc6 {
[%emt 0:00:00]} 15. Nxf6+ {[%emt 0:00:00]} Bxf6 {[%emt 0:00:00]} 16. Qxg8+ {
[%emt 0:00:00]} Ke7 {[%emt 0:00:00]} 17. Rd5 {[%emt 0:00:00]} d6 {[%emt 0:00:
00]} 18. Bh5 {[%emt 0:00:00]} Qe8 {[%emt 0:00:00]} 19. Qxe8+ {[%emt 0:00:00]}
Kxe8 {[%emt 0:00:00]} 20. Rxd6 {[%emt 0:00:00]} Ke7 {[%emt 0:00:00]} 21. Rxf6 {
[%emt 0:00:00]} Kxf6 {[%emt 0:00:00]} 22. g3 {[%emt 0:00:00]} fxg3 {[%emt 0:00:
00]} 23. hxg3 {[%emt 0:00:00]} Be6 {[%emt 0:00:00]} 24. Be2 {[%emt 0:00:00]}
Rc8 {[%emt 0:00:00]} 25. Kd2 {[%emt 0:00:00]} Rc5 {[%emt 0:00:00]} 26. b3 {
[%emt 0:00:00]} Kg7 {[%emt 0:00:00]} 27. Rh5 {[%emt 0:00:00]} Rc6 {[%emt 0:00:
00]} 28. a4 {[%emt 0:00:00]} Kg6 {[%emt 0:00:00]} 29. f4 {[%emt 0:00:00]} f5 {
[%emt 0:00:00]} 30. Rg5+ {[%emt 0:00:00]} Kf6 {[%emt 0:00:00]} 31. e5+ {
[%emt 0:00:00]} Kf7 {[%emt 0:00:00]} 32. Bd3 {[%emt 0:00:00]} h6 {[%emt 0:00:
00]} 33. Rh5 {[%emt 0:00:00]} Kg7 {[%emt 0:00:00]} 34. Ke3 {[%emt 0:00:00]} b5
{[%emt 0:00:00]} 35. axb5 {[%emt 0:00:00]} axb5 {[%emt 0:00:00]} 36. b4 {
[%emt 0:00:00]} Rc3 {[%emt 0:00:00]} 37. Kd2 {[%emt 0:00:00]} Ra3 {[%emt 0:00:
00]} 38. Bxf5 {[%emt 0:00:00]} Bxf5 {[%emt 0:00:00]} 39. Rxf5 {[%emt 0:00:00]}
Rxg3 {[%emt 0:00:00]} 40. e6 {[%emt 0:00:00]} Rg6 {[%emt 0:00:00]} 41. Rf7+ {
[%emt 0:00:00]} Kg8 {[%emt 0:00:00]} 42. f5 {[%emt 0:00:00]} Rg4 {[%emt 0:00:
00]} 43. Ke3 {[%emt 0:00:00]} h5 {[%emt 0:00:00]} 44. Ra7 {[%emt 0:00:00]} Rg1
{[%emt 0:00:00]} 45. Kf2 {[%emt 0:00:00]} Rg5 {[%emt 0:00:00]} 46. Ra8+ {
[%emt 0:00:00]} Kg7 {[%emt 0:00:00]} 47. e7 {[%emt 0:00:00]} Rxf5+ {[%emt 0:00:
00]} 48. Kg2 {[%emt 0:00:00]} Rg5+ {[%emt 0:00:00]} 49. Kh3 {[%emt 0:00:00]}
1-0

[Event "Gibraltar Masters 18th"]
[Site "Gibraltar"]
[Date "2020.01.22"]
[Round "2.48"]
[White "Veltkamp, Gerben"]
[Black "Hjartarson, Johann"]
[Result "0-1"]
[ECO "B06"]
[WhiteElo "2140"]
[BlackElo "2524"]
[PlyCount "54"]
[EventDate "2020.01.21"]
[EventType "swiss"]
[EventRounds "10"]
[EventCountry "GGB"]
[SourceTitle "BritBase"]
[Source "John Saunders"]
[SourceDate "2021.06.05"]
[SourceVersion "1"]
[SourceVersionDate "2021.06.05"]
[SourceQuality "1"]
[TimeControl "40/100:0"]
[WhiteClock "0:02:37"]
[BlackClock "0:39:45"]

1. e4 {[%emt 0:00:00]} g6 {[%emt 0:00:00]} 2. d4 {[%emt 0:00:00]} Bg7 {[%emt 0:
00:00]} 3. Nc3 {[%emt 0:00:00]} d6 {[%emt 0:00:00]} 4. Be3 {[%emt 0:00:00]} a6
{[%emt 0:00:00]} 5. Qd2 {[%emt 0:00:00]} b5 {[%emt 0:00:00]} 6. f3 {[%emt 0:00:
00]} Nf6 {[%emt 0:00:00]} 7. h4 {[%emt 0:00:00]} h5 {[%emt 0:00:00]} 8. g3 {
[%emt 0:00:00]} Nbd7 {[%emt 0:00:00]} 9. Nh3 {[%emt 0:00:00]} c5 {[%emt 0:00:
00]} 10. Ng5 {[%emt 0:00:00]} Bb7 {[%emt 0:00:00]} 11. a4 {[%emt 0:00:00]} b4 {
[%emt 0:00:00]} 12. Nd1 {[%emt 0:00:00]} cxd4 {[%emt 0:00:00]} 13. Bxd4 {
[%emt 0:00:00]} a5 {[%emt 0:00:00]} 14. Bc4 {[%emt 0:00:00]} O-O {[%emt 0:00:
00]} 15. g4 {[%emt 0:00:00]} Qc7 {[%emt 0:00:00]} 16. Bxf7+ {[%emt 0:00:00]}
Rxf7 {[%emt 0:00:00]} 17. gxh5 {[%emt 0:00:00]} Nxh5 {[%emt 0:00:00]} 18. Nxf7
{[%emt 0:00:00]} Kxf7 {[%emt 0:00:00]} 19. Bxg7 {[%emt 0:00:00]} Kxg7 {[%emt 0:
00:00]} 20. Ne3 {[%emt 0:00:00]} Ne5 {[%emt 0:00:00]} 21. Nf5+ {[%emt 0:00:00]}
Kf7 {[%emt 0:00:00]} 22. Nd4 {[%emt 0:00:00]} Qc4 {[%emt 0:00:00]} 23. O-O-O {
[%emt 0:00:00]} Qa2 {[%emt 0:00:00]} 24. Nb3 {[%emt 0:00:00]} Rc8 {[%emt 0:00:
00]} 25. f4 {[%emt 0:00:00]} Nc4 {[%emt 0:00:00]} 26. Qd4 {[%emt 0:00:00]} Na3
{[%emt 0:00:00]} 27. bxa3 {[%emt 0:00:00]} Qxc2# {[%emt 0:00:00]} 0-1

[Event "Gibraltar Masters 18th"]
[Site "Gibraltar"]
[Date "2020.01.22"]
[Round "2.49"]
[White "Kozak, Adam"]
[Black "Pranav, Anand"]
[Result "1-0"]
[ECO "E05"]
[WhiteElo "2523"]
[BlackElo "2309"]
[PlyCount "105"]
[EventDate "2020.01.21"]
[EventType "swiss"]
[EventRounds "10"]
[EventCountry "GGB"]
[SourceTitle "BritBase"]
[Source "John Saunders"]
[SourceDate "2021.06.05"]
[SourceVersion "1"]
[SourceVersionDate "2021.06.05"]
[SourceQuality "1"]
[TimeControl "40/100:0"]
[WhiteClock "0:51:11"]
[BlackClock "0:51:46"]

1. Nf3 {[%emt 0:00:00]} Nf6 {[%emt 0:00:00]} 2. g3 {[%emt 0:00:00]} e6 {
[%emt 0:00:00]} 3. Bg2 {[%emt 0:00:00]} d5 {[%emt 0:00:00]} 4. O-O {[%emt 0:00:
00]} Be7 {[%emt 0:00:00]} 5. c4 {[%emt 0:00:00]} O-O {[%emt 0:00:00]} 6. d4 {
[%emt 0:00:00]} dxc4 {[%emt 0:00:00]} 7. Qc2 {[%emt 0:00:00]} b5 {[%emt 0:00:
00]} 8. a4 {[%emt 0:00:00]} b4 {[%emt 0:00:00]} 9. Nbd2 {[%emt 0:00:00]} Bb7 {
[%emt 0:00:00]} 10. Nxc4 {[%emt 0:00:00]} c5 {[%emt 0:00:00]} 11. dxc5 {
[%emt 0:00:00]} Be4 {[%emt 0:00:00]} 12. Qd1 {[%emt 0:00:00]} Bxc5 {[%emt 0:00:
00]} 13. Bf4 {[%emt 0:27:05]} Bd5 {[%emt 0:00:00]} 14. Rc1 {[%emt 0:00:00]}
Nbd7 {[%emt 0:00:00]} 15. Nfe5 {[%emt 0:00:00]} Bxg2 {[%emt 0:00:00]} 16. Kxg2
{[%emt 0:00:00]} Nxe5 {[%emt 0:00:00]} 17. Bxe5 {[%emt 0:00:00]} Qe7 {[%emt 0:
00:00]} 18. Bxf6 {[%emt 0:00:00]} Qxf6 {[%emt 0:00:00]} 19. Qd3 {[%emt 0:00:00]
} Rfd8 {[%emt 0:00:00]} 20. Qf3 {[%emt 0:00:00]} Qxf3+ {[%emt 0:00:00]} 21.
Kxf3 {[%emt 0:00:00]} b3 {[%emt 0:00:00]} 22. Rfd1 {[%emt 0:00:00]} g5 {
[%emt 0:00:00]} 23. Rxd8+ {[%emt 0:00:00]} Rxd8 {[%emt 0:00:00]} 24. Ne5 {
[%emt 0:00:00]} Bf8 {[%emt 0:00:00]} 25. Rc4 {[%emt 0:00:00]} Bg7 {[%emt 0:00:
00]} 26. Nd3 {[%emt 0:00:00]} Rd4 {[%emt 0:00:00]} 27. Rxd4 {[%emt 0:00:00]}
Bxd4 {[%emt 0:00:00]} 28. Ke4 {[%emt 0:00:00]} Bg7 {[%emt 0:00:00]} 29. Nc5 {
[%emt 0:00:00]} Bxb2 {[%emt 0:00:00]} 30. Nxb3 {[%emt 0:00:00]} g4 {[%emt 0:00:
00]} 31. Kd3 {[%emt 0:00:00]} f5 {[%emt 0:00:00]} 32. Nd4 {[%emt 0:00:00]} Bxd4
{[%emt 0:00:00]} 33. Kxd4 {[%emt 0:00:00]} Kf7 {[%emt 0:00:00]} 34. Kc5 {
[%emt 0:00:00]} Ke7 {[%emt 0:00:18]} 35. Kc6 {[%emt 0:00:00]} Ke8 {[%emt 0:00:
00]} 36. Kd6 {[%emt 0:00:00]} Kf7 {[%emt 0:00:00]} 37. f3 {[%emt 0:00:00]} gxf3
{[%emt 0:00:18]} 38. exf3 {[%emt 0:00:00]} Kf6 {[%emt 0:00:06]} 39. f4 {
[%emt 0:00:00]} a5 {[%emt 0:00:20]} 40. Kc5 {[%emt 0:00:00]} e5 {[%emt 0:00:00]
} 41. fxe5+ {[%emt 0:00:00]} Kxe5 {[%emt 0:00:00]} 42. Kb5 {[%emt 0:00:00]} Ke4
{[%emt 0:00:00]} 43. Kxa5 {[%emt 0:00:00]} Kf3 {[%emt 0:00:00]} 44. Kb4 {
[%emt 0:00:00]} Kg2 {[%emt 0:00:00]} 45. a5 {[%emt 0:00:00]} Kxh2 {[%emt 0:00:
00]} 46. a6 {[%emt 0:00:00]} Kxg3 {[%emt 0:00:00]} 47. a7 {[%emt 0:00:00]} f4 {
[%emt 0:00:00]} 48. a8=Q {[%emt 0:00:00]} f3 {[%emt 0:00:00]} 49. Qg8+ {
[%emt 0:00:00]} Kh2 {[%emt 0:00:00]} 50. Qxh7+ {[%emt 0:00:00]} Kg2 {[%emt 0:
00:00]} 51. Qg6+ {[%emt 0:00:00]} Kh2 {[%emt 0:00:00]} 52. Qh5+ {[%emt 0:00:00]
} Kg2 {[%emt 0:00:00]} 53. Qg4+ {[%emt 0:00:00]} 1-0

[Event "Gibraltar Masters 18th"]
[Site "Gibraltar"]
[Date "2020.01.22"]
[Round "2.50"]
[White "Represa Perez, Mireya"]
[Black "Krysa, Leandro"]
[Result "0-1"]
[ECO "C84"]
[WhiteElo "2081"]
[BlackElo "2522"]
[PlyCount "60"]
[EventDate "2020.01.21"]
[EventType "swiss"]
[EventRounds "10"]
[EventCountry "GGB"]
[SourceTitle "BritBase"]
[Source "John Saunders"]
[SourceDate "2021.06.05"]
[SourceVersion "1"]
[SourceVersionDate "2021.06.05"]
[SourceQuality "1"]
[TimeControl "40/100:0"]
[WhiteClock "0:07:03"]
[BlackClock "0:39:12"]

1. e4 {[%emt 0:00:00]} e5 {[%emt 0:00:00]} 2. Nf3 {[%emt 0:00:00]} Nc6 {
[%emt 0:00:00]} 3. Bb5 {[%emt 0:00:00]} a6 {[%emt 0:00:00]} 4. Ba4 {[%emt 0:00:
00]} Nf6 {[%emt 0:00:00]} 5. d3 {[%emt 0:00:00]} d6 {[%emt 0:00:00]} 6. O-O {
[%emt 0:00:00]} b5 {[%emt 0:00:00]} 7. Bb3 {[%emt 0:00:00]} Na5 {[%emt 0:00:00]
} 8. Nc3 {[%emt 0:00:00]} Be7 {[%emt 0:00:00]} 9. d4 {[%emt 0:00:00]} exd4 {
[%emt 0:00:00]} 10. Nd5 {[%emt 0:00:00]} c5 {[%emt 0:00:00]} 11. Nxe7 {[%emt 0:
00:00]} Qxe7 {[%emt 0:00:00]} 12. Bd5 {[%emt 0:00:00]} Nxd5 {[%emt 0:00:00]}
13. exd5 {[%emt 0:00:00]} O-O {[%emt 0:00:00]} 14. Qd3 {[%emt 0:00:00]} f6 {
[%emt 0:00:00]} 15. Bf4 {[%emt 0:00:00]} Nc4 {[%emt 0:00:00]} 16. Rae1 {
[%emt 0:00:00]} Qf7 {[%emt 0:00:00]} 17. c3 {[%emt 0:00:00]} Nxb2 {[%emt 0:00:
00]} 18. Qe4 {[%emt 0:00:00]} dxc3 {[%emt 0:00:00]} 19. Bxd6 {[%emt 0:01:35]}
Rd8 {[%emt 0:00:00]} 20. Bxc5 {[%emt 0:00:00]} Bb7 {[%emt 0:00:00]} 21. Qd4 {
[%emt 0:00:00]} Rxd5 {[%emt 0:00:00]} 22. Re7 {[%emt 0:00:00]} Rxd4 {[%emt 0:
00:00]} 23. Rxf7 {[%emt 0:00:00]} Bxf3 {[%emt 0:00:00]} 24. Bxd4 {[%emt 0:00:
00]} Kxf7 {[%emt 0:00:00]} 25. gxf3 {[%emt 0:00:00]} b4 {[%emt 0:00:00]} 26.
Rc1 {[%emt 0:00:00]} Rd8 {[%emt 0:00:00]} 27. Be3 {[%emt 0:00:00]} Rd1+ {
[%emt 0:00:00]} 28. Rxd1 {[%emt 0:00:00]} Nxd1 {[%emt 0:00:00]} 29. Bc1 {
[%emt 0:00:00]} c2 {[%emt 0:00:00]} 30. Kf1 {[%emt 0:00:00]} Nc3 {[%emt 0:00:
00]} 0-1

[Event "Gibraltar Masters 18th"]
[Site "Gibraltar"]
[Date "2020.01.22"]
[Round "2.51"]
[White "Libiszewski, Fabien"]
[Black "Zhou, Guijue"]
[Result "1/2-1/2"]
[ECO "B28"]
[WhiteElo "2522"]
[BlackElo "2193"]
[PlyCount "75"]
[EventDate "2020.01.21"]
[EventType "swiss"]
[EventRounds "10"]
[EventCountry "GGB"]
[SourceTitle "BritBase"]
[Source "John Saunders"]
[SourceDate "2021.06.05"]
[SourceVersion "1"]
[SourceVersionDate "2021.06.05"]
[SourceQuality "1"]
[TimeControl "40/100:0"]
[WhiteClock "0:02:46"]
[BlackClock "0:22:37"]

1. e4 {[%emt 0:00:00]} c5 {[%emt 0:00:00]} 2. Nf3 {[%emt 0:00:00]} a6 {[%emt 0:
00:00]} 3. Be2 {[%emt 0:00:00]} d6 {[%emt 0:00:00]} 4. O-O {[%emt 0:00:00]} Nf6
{[%emt 0:00:00]} 5. c3 {[%emt 0:00:00]} g6 {[%emt 0:00:00]} 6. Re1 {[%emt 0:00:
00]} Bg7 {[%emt 0:00:00]} 7. Bf1 {[%emt 0:00:00]} O-O {[%emt 0:00:00]} 8. h3 {
[%emt 0:00:00]} Nc6 {[%emt 0:00:00]} 9. d4 {[%emt 0:00:00]} cxd4 {[%emt 0:00:
00]} 10. cxd4 {[%emt 0:00:00]} d5 {[%emt 0:00:00]} 11. e5 {[%emt 0:00:00]} Ne8
{[%emt 0:00:00]} 12. Nc3 {[%emt 0:00:00]} Nc7 {[%emt 0:00:00]} 13. Bf4 {
[%emt 0:00:00]} Ne6 {[%emt 0:00:00]} 14. Be3 {[%emt 0:00:00]} b5 {[%emt 0:00:
00]} 15. Qd2 {[%emt 0:00:00]} Bb7 {[%emt 0:00:00]} 16. Rad1 {[%emt 0:00:00]}
Qd7 {[%emt 0:00:00]} 17. Bh6 {[%emt 0:00:00]} f6 {[%emt 0:00:00]} 18. Bxg7 {
[%emt 0:00:00]} Kxg7 {[%emt 0:00:00]} 19. h4 {[%emt 0:00:00]} f5 {[%emt 0:00:
00]} 20. Ne2 {[%emt 0:00:00]} Ncd8 {[%emt 0:00:00]} 21. Rc1 {[%emt 0:00:00]}
Nf7 {[%emt 0:00:00]} 22. Nf4 {[%emt 0:00:00]} Rfc8 {[%emt 0:00:00]} 23. Nxe6+ {
[%emt 0:00:00]} Qxe6 {[%emt 0:00:00]} 24. Rc5 {[%emt 0:00:00]} Rc6 {[%emt 0:00:
00]} 25. b4 {[%emt 0:00:00]} Rac8 {[%emt 0:00:00]} 26. Qf4 {[%emt 0:00:00]} h6
{[%emt 0:00:00]} 27. Bd3 {[%emt 0:00:00]} Nd8 {[%emt 0:00:00]} 28. h5 {[%emt 0:
00:00]} Qg8 {[%emt 0:00:00]} 29. hxg6 {[%emt 0:00:00]} Ne6 {[%emt 0:00:00]} 30.
Qxf5 {[%emt 0:00:00]} Rf8 {[%emt 0:00:00]} 31. Qg4 {[%emt 0:00:00]} Rf4 {
[%emt 0:00:00]} 32. Qg3 {[%emt 0:00:00]} Nxc5 {[%emt 0:00:00]} 33. bxc5 {
[%emt 0:00:00]} Qf8 {[%emt 0:00:00]} 34. Re3 {[%emt 0:00:00]} Bc8 {[%emt 0:00:
00]} 35. Qh2 {[%emt 0:00:00]} Bg4 {[%emt 0:00:00]} 36. Qg3 {[%emt 0:00:00]} Bc8
{[%emt 0:00:00]} 37. Qh2 {[%emt 0:00:00]} Bg4 {[%emt 0:00:00]} 38. Qg3 {
[%emt 0:00:00]} 1/2-1/2